fUST/lending_fUST_20240601
["ID","MTS","AMOUNT","RATE_DAILY","PERIOD"]
[328362757,1717247443883,-500.0,0.00021917,2]
[328362758,1717247443892,-525.58,0.00021917,2]
[328362760,1717247443901,-580.87,0.00021917,2]
[328362762,1717247443910,-152.97824,0.00021917,2]
[328362764,1717247443919,-152.97824,0.00021917,2]
[328362766,1717247443929,-500.0,0.00021917,2]
[328362768,1717247443938,-152.97824,0.00021917,2]
[328362770,1717247443947,-500.0,0.00021917,2]
[328362772,1717247443957,-151.0,0.00021917,2]
[328362774,1717247443966,-500.0,0.00021917,2]
[328362776,1717247443976,-152.97824,0.00021917,2]
[328362778,1717247443985,-500.0,0.00021917,2]
[328362780,1717247443994,-152.97824,0.00021917,2]
[328362781,1717247444003,-500.0,0.00021917,2]
[328362782,1717247444016,-152.97824,0.00021917,2]
[328362783,1717247444026,-500.0,0.00021917,2]
[328362784,1717247444036,-152.97824,0.00021917,2]
[328362785,1717247444047,-152.97824,0.00021917,2]
[328362786,1717247444057,-152.97824,0.00021917,2]
[328362787,1717247444066,-152.978242,0.00021917,2]
[328362788,1717247444076,-500.0,0.00021917,2]
[328362789,1717247444087,-712.36,0.00021917,2]
[328362790,1717247444096,-3035.66,0.00021917,2]
[328362791,1717247444106,-500.0,0.00021917,2]
[328362792,1717247444115,-639.25642791,0.00021917,2]
[328362825,1717247518084,155.00155002,9.999e-05,2]
[328362886,1717248632651,-156.95364019,0.00015,2]
[328362887,1717248632661,-2289.29359442,0.000189,2]
[328362888,1717248632671,-171.42272,0.00020065,2]
[328362889,1717248632681,-24900.0,0.00020139,2]
[328362890,1717248632691,-250.0,0.00020352,2]
[328362891,1717248632700,-227.93207928,0.00021,2]
[328362892,1717248632709,-158.74232997,0.00021813,2]
[328362893,1717248632719,-158.74232996,0.00021815,2]
[328362894,1717248632728,-500.0,0.00021894,2]
[328362895,1717248632737,-175.63700197,0.00021894,2]
[328362896,1717248632747,-325.95619399,0.00021894,2]
[328362897,1717248632756,-500.0,0.00021894,2]
[328362898,1717248632766,-402.65519948,0.00021894,2]
[328362899,1717248632776,-500.0,0.00021894,2]
[328362900,1717248632785,-500.0,0.00021894,2]
[328362901,1717248632794,-322.73199022,0.00021894,2]
[328362902,1717248632803,-254.06287751,0.00021894,2]
[328362903,1717248632812,-500.0,0.00021894,2]
[328362904,1717248632822,-500.0,0.00021894,2]
[328362905,1717248632831,-500.0,0.00021894,2]
[328362906,1717248632840,-500.0,0.00021894,2]
[328362907,1717248632849,-500.0,0.00021894,2]
[328362908,1717248632858,-993.55296446,0.00021895,7]
[328362909,1717248632867,-78863.03284297,0.00021895,4]
[328362988,1717248642275,-10397.10915652,0.00021895,4]
[328362990,1717248642288,-34400.3633794,0.00021895,4]
[328362992,1717248642303,-7096.78857566,0.00021895,4]
[328362995,1717248642314,-52363.94344225,0.00021895,4]
[328363016,1717248643819,-5326.25279226,0.00021895,4]
[328363017,1717248643831,-69552.50981094,0.00021895,4]
[328363018,1717248643841,-211.23648545,0.00021913,7]
[328363019,1717248643850,-9411.65266598,0.00021913,2]
[328363020,1717248643859,-9780.67997287,0.00021913,2]
[328363021,1717248643869,-495.77179702,0.00021915,2]
[328363022,1717248643878,-19714.50286479,0.00021915,2]
[328363023,1717248643887,-231.58546758,0.00021915,2]
[328363024,1717248643896,-162.78996957,0.00021915,2]
[328363025,1717248643905,-3065.36012742,0.00021915,2]
[328363026,1717248643914,-17886.41099895,0.00021915,2]
[328363027,1717248643923,-33375.16697319,0.00021915,2]
[328363028,1717248643932,-514.4011603,0.00021915,2]
[328363029,1717248643942,-1339.54394266,0.00021915,2]
[328363030,1717248643952,-215.41652496,0.00021915,2]
[328363031,1717248643961,-443.31373109,0.00021915,2]
[328363034,1717248646581,-152.30751489,0.00021794,2]
[328363035,1717248646591,-496.83066913,0.00021915,2]
[328363036,1717248646872,-806.66035076,0.00021915,2]
[328363037,1717248712057,1871.97604219,9.999e-05,2]
[328363038,1717248727171,155.00155002,9.999e-05,2]
[328363039,1717248882358,405.5,0.00030683,30]
[328363041,1717248942433,518.26,0.00030683,30]
[328363055,1717249541700,151.0,0.00030685,30]
[328363061,1717249665206,310.03770629,0.00014999,2]
[328363103,1717249809377,3723.31388591,0.00030685,30]
[328363287,1717249838806,-156.95364019,0.00019666,2]
[328363289,1717249838815,-171.277105,0.00019667,2]
[328363291,1717249838826,-24900.0,0.00020216,2]
[328363293,1717249838835,-171.42272,0.00020366,2]
[328363295,1717249838845,-232.66440457,0.00021,2]
[328363297,1717249838854,-623.91120671,0.00021151,2]
[328363299,1717249838863,-178.73233887,0.000218,2]
[328363301,1717249838872,-497.0,0.00021804,2]
[328363303,1717249838882,-150.495,0.00021804,2]
[328363305,1717249838891,-228.294,0.00021804,2]
[328363307,1717249838905,-500.0,0.00021839,2]
[328363309,1717249838914,-500.0,0.00021839,2]
[328363311,1717249838923,-500.0,0.00021839,2]
[328363313,1717249838933,-500.0,0.00021839,2]
[328363315,1717249838942,-157.71717594,0.00021839,2]
[328363317,1717249838951,-500.0,0.00021839,2]
[328363319,1717249838961,-500.0,0.00021839,2]
[328363321,1717249838971,-500.0,0.00021839,2]
[328363323,1717249838981,-500.0,0.00021839,2]
[328363325,1717249838991,-500.0,0.00021839,2]
[328363327,1717249839000,-500.0,0.00021839,2]
[328363329,1717249839010,-500.0,0.00021839,2]
[328363331,1717249839019,-500.0,0.00021839,2]
[328363333,1717249839029,-500.0,0.00021839,2]
[328363335,1717249839039,-500.0,0.00021839,2]
[328363337,1717249839048,-629.42521903,0.00021839,2]
[328363339,1717249839058,-255.8922345,0.00021839,2]
[328363341,1717249839068,-257.91858224,0.00021839,2]
[328363343,1717249839078,-500.0,0.00021839,2]
[328363345,1717249839088,-157.10495915,0.00021839,2]
[328363347,1717249839100,-500.0,0.00021839,2]
[328363349,1717249839110,-500.0,0.00021839,2]
[328363351,1717249839120,-500.0,0.00021839,2]
[328363353,1717249839130,-500.0,0.00021839,2]
[328363355,1717249839141,-273.61916807,0.00021839,2]
[328363358,1717249839151,-500.0,0.00021839,2]
[328363360,1717249839162,-500.0,0.00021839,2]
[328363362,1717249839171,-500.0,0.00021839,2]
[328363364,1717249839181,-450.0,0.00021839,2]
[328363366,1717249839191,-500.0,0.00021839,2]
[328363368,1717249839201,-500.0,0.00021839,2]
[328363370,1717249839211,-500.0,0.00021839,2]
[328363372,1717249839220,-500.0,0.00021839,2]
[328363374,1717249839230,-500.0,0.00021839,2]
[328363375,1717249839239,-500.0,0.00021839,2]
[328363377,1717249839249,-500.0,0.00021839,2]
[328363379,1717249839258,-215.10948233,0.00021839,2]
[328363380,1717249839268,-500.0,0.00021839,2]
[328363382,1717249839277,-500.0,0.00021839,2]
[328363384,1717249839287,-500.0,0.00021839,2]
[328363385,1717249839296,-294.90985501,0.00021839,2]
[328363387,1717249839306,-500.0,0.00021839,2]
[328363389,1717249839316,-500.0,0.00021839,2]
[328363391,1717249839325,-500.0,0.00021839,2]
[328363393,1717249839335,-500.0,0.00021839,2]
[328363395,1717249839344,-500.0,0.00021839,2]
[328363396,1717249839354,-500.0,0.00021839,2]
[328363398,1717249839363,-500.0,0.00021839,2]
[328363400,1717249839372,-500.0,0.00021839,2]
[328363402,1717249839381,-500.0,0.00021839,2]
[328363403,1717249839391,-500.0,0.00021839,2]
[328363405,1717249839400,-500.0,0.00021839,2]
[328363407,1717249839409,-500.0,0.00021839,2]
[328363409,1717249839420,-500.0,0.00021839,2]
[328363410,1717249839429,-500.0,0.00021839,2]
[328363412,1717249839439,-500.0,0.00021839,2]
[328363414,1717249839448,-500.0,0.00021839,2]
[328363416,1717249839457,-500.0,0.00021839,2]
[328363418,1717249839467,-500.0,0.00021839,2]
[328363419,1717249839477,-500.0,0.00021839,2]
[328363421,1717249839486,-500.0,0.00021839,2]
[328363423,1717249839496,-500.0,0.00021839,2]
[328363425,1717249839505,-500.0,0.00021839,2]
[328363427,1717249839514,-500.0,0.00021839,2]
[328363428,1717249839523,-500.0,0.00021839,2]
[328363430,1717249839533,-500.0,0.00021839,2]
[328363432,1717249839542,-500.0,0.00021839,2]
[328363434,1717249839552,-500.0,0.00021839,2]
[328363436,1717249839562,-288.80903596,0.00021839,2]
[328363438,1717249839571,-500.0,0.00021839,2]
[328363439,1717249839581,-260.78056655,0.00021839,2]
[328363441,1717249839590,-500.0,0.00021839,2]
[328363443,1717249839600,-500.0,0.00021839,2]
[328363445,1717249839609,-500.0,0.00021839,2]
[328363447,1717249839618,-500.0,0.00021839,2]
[328363449,1717249839627,-500.0,0.00021839,2]
[328363450,1717249839636,-500.0,0.00021839,2]
[328363452,1717249839645,-395.83678632,0.00021839,2]
[328363454,1717249839654,-500.0,0.00021839,2]
[328363456,1717249839663,-500.0,0.00021839,2]
[328363457,1717249839672,-500.0,0.00021839,2]
[328363459,1717249839681,-500.0,0.00021839,2]
[328363461,1717249839690,-500.0,0.00021839,2]
[328363462,1717249839699,-500.0,0.00021839,2]
[328363464,1717249839709,-500.0,0.00021839,2]
[328363466,1717249839719,-500.0,0.00021839,2]
[328363468,1717249839728,-500.0,0.00021839,2]
[328363470,1717249839737,-503.63973204,0.00021839,2]
[328363472,1717249839746,-238.4729565,0.00021839,2]
[328363474,1717249839755,-500.0,0.00021839,2]
[328363476,1717249839764,-496.77648223,0.0002184,7]
[328363477,1717249839774,-211.23648543,0.0002184,7]
[328363479,1717249839783,-221702.86777757,0.0002184,4]
[328363694,1717249842166,-47565.0481293,0.0002184,4]
[328363708,1717249842298,-1705.56110482,0.0002184,4]
[328363710,1717249842311,-13666.0,0.0002184,4]
[328363712,1717249842323,-18977.18016958,0.0002184,4]
[328363857,1717249843971,-53167.56132224,0.0002184,4]
[328363945,1717249863904,523.65306133,9.999e-05,2]
[328363946,1717249870619,1871.97604219,9.999e-05,2]
[328363949,1717249987462,2367.98,0.00030685,30]
[328363951,1717250082272,309.0,0.00030685,30]
[328363961,1717250362543,112.35404796,9.9e-05,2]
[328363962,1717250362574,161.01931435,9.9e-05,2]
[328363963,1717250370751,273.37336231,9.9e-05,2]
[328363964,1717250380164,273.37336231,9.9e-05,2]
[328363965,1717250388782,273.37336231,9.9e-05,2]
[328363966,1717250398283,273.37336231,9.9e-05,2]
[328363967,1717250408215,273.37336231,9.9e-05,2]
[328363968,1717250416634,273.37336231,9.9e-05,2]
[328363969,1717250591590,160.0,0.00030666,30]
[328363973,1717250810214,500.0,0.00030666,30]
[328363974,1717250818320,500.0,0.00030666,30]
[328363975,1717250825908,500.0,0.00030666,30]
[328363983,1717250833700,500.0,0.00030666,30]
[328363993,1717251031935,-156.95364019,0.00015,2]
[328363994,1717251031945,-7335.37904907,0.00017999,2]
[328363995,1717251031987,-1367.43256246,0.00017999,2]
[328363997,1717251031997,-897.38565272,0.00018,2]
[328363999,1717251032007,-2394.433897,0.00018767,2]
[328364002,1717251032017,-24900.0,0.00019201,2]
[328364004,1717251032027,-166.9160116,0.0001924,2]
[328364006,1717251032035,-923.61703461,0.00019639,2]
[328364008,1717251032045,-542.68894042,0.00019639,2]
[328364009,1717251032054,-922.4720001,0.00020819,2]
[328364010,1717251032063,-500.0,0.00021703,2]
[328364011,1717251032072,-500.0,0.00021703,2]
[328364012,1717251032082,-500.0,0.00021703,2]
[328364013,1717251032091,-484.03937959,0.00021703,2]
[328364014,1717251032100,-500.0,0.00021703,2]
[328364015,1717251032109,-477.37557467,0.00021703,2]
[328364016,1717251032119,-371.54188695,0.00021703,2]
[328364017,1717251032128,-500.0,0.00021703,2]
[328364018,1717251032138,-500.0,0.00021703,2]
[328364019,1717251032147,-281.61641106,0.00021703,2]
[328364020,1717251032157,-500.0,0.00021703,2]
[328364021,1717251032166,-500.0,0.00021703,2]
[328364022,1717251032176,-464.5328447,0.00021703,2]
[328364023,1717251032186,-500.0,0.00021703,2]
[328364024,1717251032195,-500.0,0.00021703,2]
[328364025,1717251032204,-500.0,0.00021703,2]
[328364026,1717251032214,-526.76767035,0.00021703,2]
[328364027,1717251032224,-500.0,0.00021703,2]
[328364028,1717251032233,-500.0,0.00021703,2]
[328364029,1717251032242,-586.09191961,0.00021703,2]
[328364030,1717251032251,-500.0,0.00021703,2]
[328364031,1717251032262,-500.0,0.00021703,2]
[328364032,1717251032272,-195.64228517,0.00021703,2]
[328364033,1717251032282,-532.08989288,0.00021703,2]
[328364034,1717251032291,-500.83678632,0.00021703,2]
[328364035,1717251032301,-2855.04488155,0.00021704,7]
[328364041,1717251038680,-1265.97626808,0.00021704,7]
[328364042,1717251038690,-2904.51033877,0.00021704,2]
[328364043,1717251038699,-5151.81339415,0.00021704,2]
[328364044,1717251038742,-5001.91784905,0.00021704,2]
[328364045,1717251038758,-13547.1,0.00021704,2]
[328364046,1717251038769,-3374.1359825,0.00021704,2]
[328364109,1717251043694,-438.5820313,0.00020787,4]
[328364111,1717251043704,-914.36753528,0.00021704,2]
[328364112,1717251043715,-35560.40535816,0.00021704,2]
[328364120,1717251043960,-5241.89848587,0.00021704,2]
[328364122,1717251044137,-38.71416705,0.00021704,2]
[328364123,1717251044152,-18711.95256033,0.00021704,2]
[328364124,1717251044166,-9267.27772034,0.00021704,2]
[328364125,1717251044182,-333.54590968,0.00021704,2]
[328364137,1717251111312,1871.97604219,9.999e-05,2]
[328364138,1717251112134,721.35032538,9.999e-05,2]
[328364139,1717251113676,2683.84947927,9.999e-05,2]
[328364140,1717251113851,282.07383914,9.999e-05,2]
[328364141,1717251140839,758.91984057,9.999e-05,2]
[328364142,1717251192016,155.00465014,9.999e-05,2]
[328364143,1717251202328,270.78,0.00010959,2]
[328364144,1717251209922,155.00465014,9.999e-05,2]
[328364145,1717251212857,225.65,0.00010959,2]
[328364146,1717251223407,188.04,0.00010959,2]
[328364147,1717251226151,155.08068313,0.00010959,2]
[328364148,1717251228430,1280.27953886,9.999e-05,2]
[328364149,1717251233949,156.7,0.00010959,2]
[328364150,1717251238894,1315.4253657,9.999e-05,2]
[328364151,1717251239588,317.05212667,9.999e-05,2]
[328364152,1717251239736,155.00465014,9.999e-05,2]
[328364153,1717251244701,783.53,0.00010959,2]
[328364154,1717251245104,179.29117579,9.999e-05,2]
[328364155,1717251246488,1499.31190813,9.999e-05,2]
[328364157,1717251469768,24900.0,0.00013443,2]
[328364158,1717251619881,1138.43020308,0.0001,2]
[328364159,1717251630310,420.97800361,0.00014046,2]
[328364160,1717251693273,296.871825,0.00013699,2]
[328364161,1717251720514,168.7478624,0.00013699,2]
[328364162,1717251720976,1280.27953886,9.999e-05,2]
[328364163,1717251726271,155.00620025,9.999e-05,2]
[328364164,1717251747985,863.98251641,9.999e-05,2]
[328364165,1717251748012,451.44284929,9.999e-05,2]
[328364167,1717252013259,3000.0,0.00013699,2]
[328364171,1717252049222,24900.0,0.00013019,2]
[328364172,1717252089918,7860.6421153,0.00013699,2]
[328364173,1717252107155,173.77,0.00010959,2]
[328364174,1717252117670,868.88,0.00010959,2]
[328364175,1717252196148,368.35575315,0.00013905,2]
[328364176,1717252215176,2034.12275766,0.00014,2]
[328364177,1717252219097,59500.20595982,0.00014,2]
[328364178,1717252229398,2118.29497806,0.00014,2]
[328364224,1717252232231,-42045.61257886,0.00014001,2]
[328364226,1717252232241,-7908.04550285,0.00014001,2]
[328364228,1717252232250,-1315.4253657,0.00014002,2]
[328364230,1717252232260,-9576.46137373,0.00014002,2]
[328364232,1717252232268,-3067.76490554,0.00014002,2]
[328364234,1717252232277,-8861.2719395,0.00014004,2]
[328364315,1717252233061,1280.27953886,0.00014,2]
[328364336,1717252238285,-33978.0775052,0.00014004,2]
[328364337,1717252238297,-3572.31294411,0.00014004,2]
[328364338,1717252238308,-3817.14680794,0.00014004,2]
[328364339,1717252238318,-413.60311571,0.00014026,2]
[328364340,1717252238328,-155.14692029,0.00014137,2]
[328364341,1717252238337,-156.95364019,0.00015,2]
[328364342,1717252238347,-368.35575313,0.00015896,2]
[328364343,1717252238357,-944.54979949,0.00015916,2]
[328364344,1717252238366,-413.60311569,0.00015921,2]
[328364345,1717252238378,-28822.23441788,0.00016271,2]
[328364346,1717252238387,-1137.81895188,0.00016275,2]
[328364347,1717252238396,-413.60311569,0.00017815,2]
[328364348,1717252238406,-368.35575313,0.00017888,2]
[328364349,1717252238415,-10473.1254341,0.00017898,2]
[328364350,1717252238424,-897.38565272,0.00018899,2]
[328364351,1717252238434,-3143.34778553,0.000189,2]
[328364352,1717252238539,-418.87524629,0.00019178,2]
[328364353,1717252238549,-214.64433699,0.00019178,2]
[328364354,1717252238558,-625.82757588,0.00019178,2]
[328364355,1717252238570,-500.0,0.00019178,2]
[328364356,1717252238580,-500.0,0.00019178,2]
[328364357,1717252238589,-161.46256609,0.00019178,2]
[328364358,1717252238598,-413.37121916,0.00019178,2]
[328364359,1717252238610,-608.0303011,0.00019178,2]
[328364360,1717252238619,-151.0,0.00019178,2]
[328364361,1717252238629,-171.277105,0.00019178,2]
[328364362,1717252238639,-151.0,0.00019604,2]
[328364363,1717252238648,-151.0,0.00019604,2]
[328364364,1717252238657,-413.60311569,0.0001971,2]
[328364365,1717252238666,-368.35575313,0.00019879,2]
[328364366,1717252238676,-296.871825,0.00020548,2]
[328364367,1717252238685,-259.2207898,0.00020612,2]
[328364368,1717252238694,-620.19556033,0.00021098,2]
[328364369,1717252238704,-153.0,0.00021315,2]
[328364370,1717252238713,-153.0,0.00021315,2]
[328364371,1717252238723,-153.0,0.00021315,2]
[328364372,1717252238732,-153.0,0.00021315,2]
[328364373,1717252238742,-153.0,0.00021352,2]
[328364374,1717252238751,-583.9417269,0.00021519,2]
[328364375,1717252238760,-413.60311569,0.00021604,2]
[328364376,1717252238770,-4230.52943513,0.00021607,2]
[328364377,1717252238779,-2110.18642515,0.0002168,2]
[328364378,1717252238789,-468.511155,0.00021697,2]
[328364379,1717252238798,-1098.79690614,0.00021697,2]
[328364380,1717252238807,-1634.97162452,0.00021697,2]
[328364381,1717252238818,-1687.47159578,0.00021697,2]
[328364382,1717252238828,-718.67205308,0.00021697,2]
[328364383,1717252238838,-1815.09645377,0.00021697,2]
[328364384,1717252238848,-281.74716143,0.00021697,2]
[328364385,1717252238857,-837.52457151,0.00021697,2]
[328364386,1717252238868,-587.36784772,0.00021697,2]
[328364387,1717252238877,-162.78996957,0.00021698,2]
[328364388,1717252238886,-1180.49544705,0.000217,2]
[328364389,1717252238895,-316.68750256,0.000217,2]
[328364390,1717252238905,-292.1437196,0.000217,2]
[328364391,1717252238916,-11076.90258158,0.00021702,2]
[328364392,1717252238926,-19277.6013848,0.00021702,2]
[328364393,1717252238935,-2049.198445,0.00021702,2]
[328364394,1717252238945,-275.07948327,0.00021702,2]
[328364395,1717252238955,-309.84508366,0.00021702,2]
[328364396,1717252238964,-949.53897844,0.00021702,2]
[328364397,1717252238974,-181.70950151,0.00021702,2]
[328364398,1717252238983,-6435.52761157,0.00021702,2]
[328364399,1717252238992,-231.16656322,0.00021702,2]
[328364400,1717252239002,-156.65819478,0.00021702,2]
[328364401,1717252239011,-2034.12275766,0.00021702,2]
[328364402,1717252239020,-152.38359,0.00021702,2]
[328364403,1717252239030,-151.0,0.00021702,2]
[328364404,1717252239039,-151.0,0.00021702,2]
[328364405,1717252239049,-151.0,0.00021702,2]
[328364406,1717252239058,-151.0,0.00021702,2]
[328364407,1717252239068,-151.0,0.00021702,2]
[328364408,1717252239079,-151.0,0.00021702,2]
[328364409,1717252239089,-262.50385,0.00021702,2]
[328364410,1717252239098,-151.0,0.00021702,2]
[328364411,1717252239108,-151.0,0.00021702,2]
[328364412,1717252239119,-247.888767,0.00021702,2]
[328364413,1717252239128,-247.888767,0.00021702,2]
[328364414,1717252239138,-151.0,0.00021702,2]
[328364415,1717252239148,-151.0,0.00021702,2]
[328364416,1717252239158,-151.0,0.00021702,2]
[328364417,1717252239167,-151.0,0.00021702,2]
[328364418,1717252239177,-151.0,0.00021702,2]
[328364419,1717252239186,-151.0,0.00021702,2]
[328364420,1717252239196,-151.0,0.00021702,2]
[328364421,1717252239206,-166.374405,0.00021702,2]
[328364422,1717252239216,-151.0,0.00021702,2]
[328364423,1717252239226,-151.0,0.00021702,2]
[328364424,1717252239236,-151.0,0.00021702,2]
[328364425,1717252239246,-151.0,0.00021702,2]
[328364426,1717252239256,-53013.41456375,0.00021703,2]
[328364432,1717252242226,-6486.79139607,0.00021703,2]
[328364433,1717252242236,-373.20860393,0.00021704,2]
[328364434,1717252242248,-378.79359255,0.00021704,2]
[328364435,1717252242259,-261.546,0.00021704,2]
[328364455,1717252364739,273.37336231,9.9e-05,2]
[328364456,1717252372776,273.37336231,9.9e-05,2]
[328364457,1717252380859,273.37336231,9.9e-05,2]
[328364458,1717252382435,521.15105648,9.999e-05,2]
[328364459,1717252382549,309.73672456,0.0001,2]
[328364460,1717252389478,273.37336231,9.9e-05,2]
[328364461,1717252395604,3637.18144934,9.9e-05,2]
[328364462,1717252397755,273.37336231,9.9e-05,2]
[328364463,1717252405804,273.37336231,9.9e-05,2]
[328364464,1717252409561,3637.18144934,9.9e-05,2]
[328364465,1717252414202,273.37336231,9.9e-05,2]
[328364466,1717252415072,299.93372804,9.9e-05,2]
[328364467,1717252433008,299.93372804,9.9e-05,2]
[328364468,1717252437512,1934.04781559,9.9e-05,2]
[328364469,1717252446944,16173.06263081,9.9e-05,2]
[328364470,1717252449010,299.93372804,9.9e-05,2]
[328364471,1717252464931,10452.58307894,9.9e-05,2]
[328364472,1717252465013,298.79794661,9.9e-05,2]
[328364473,1717252540917,8105.06610512,9.9e-05,2]
[328364474,1717252542078,3378.44495426,9.9e-05,2]
[328364475,1717252547610,309.93903107,9.9e-05,2]
[328364476,1717252549525,3637.18144934,9.9e-05,2]
[328364477,1717252549717,155.71926209,9.9e-05,2]
[328364478,1717252566093,989.76127447,9.9e-05,2]
[328364479,1717252571526,3637.18144934,9.9e-05,2]
[328364480,1717252587548,3632.86347955,9.9e-05,2]
[328364481,1717252626352,273.37336231,9.9e-05,2]
[328364482,1717252633537,3631.20230829,9.9e-05,2]
[328364483,1717252634978,273.37336231,9.9e-05,2]
[328364484,1717252637403,712.28306487,9.999e-05,2]
[328364486,1717252641021,187.60028223,9.999e-05,2]
[328364487,1717252643647,273.37336231,9.9e-05,2]
[328364488,1717252651754,273.37336231,9.9e-05,2]
[328364489,1717252655003,1045.19538836,9.999e-05,2]
[328364490,1717252660506,273.37336231,9.9e-05,2]
[328364491,1717252669200,273.37336231,9.9e-05,2]
[328364492,1717252677375,273.37336231,9.9e-05,2]
[328364493,1717252685314,273.37336231,9.9e-05,2]
[328364494,1717252694632,273.37336231,9.9e-05,2]
[328364495,1717252702560,273.37336231,9.9e-05,2]
[328364496,1717252710840,273.37336231,9.9e-05,2]
[328364497,1717252718632,273.37336231,9.9e-05,2]
[328364498,1717252727512,273.37336231,9.9e-05,2]
[328364499,1717252735439,273.37336231,9.9e-05,2]
[328364500,1717252743468,273.37336231,9.9e-05,2]
[328364501,1717252752403,273.37336231,9.9e-05,2]
[328364502,1717252760505,273.37336231,9.9e-05,2]
[328364503,1717252763564,3635.29267682,9.9e-05,2]
[328364504,1717252768527,273.37336231,9.9e-05,2]
[328364505,1717252776731,273.37336231,9.9e-05,2]
[328364506,1717252777160,299.7786707,9.9e-05,2]
[328364507,1717252785165,273.37336231,9.9e-05,2]
[328364508,1717252793676,3648.4597674,9.9e-05,2]
[328364509,1717252793902,273.37336231,9.9e-05,2]
[328364510,1717252797038,299.7786707,9.9e-05,2]
[328364511,1717252801902,273.37336231,9.9e-05,2]
[328364512,1717252810761,273.37336231,9.9e-05,2]
[328364513,1717252818655,273.37336231,9.9e-05,2]
[328364514,1717252826119,3377.54170379,9.9e-05,2]
[328364515,1717252826820,273.37336231,9.9e-05,2]
[328364516,1717252834787,273.37336231,9.9e-05,2]
[328364517,1717252842971,273.37336231,9.9e-05,2]
[328364518,1717252851194,273.37336231,9.9e-05,2]
[328364519,1717252854120,3377.54170379,9.9e-05,2]
[328364520,1717252859047,299.36996738,9.9e-05,2]
[328364521,1717252860485,273.37336231,9.9e-05,2]
[328364522,1717252868506,273.37336231,9.9e-05,2]
[328364523,1717252876902,273.37336231,9.9e-05,2]
[328364524,1717252884847,273.37336231,9.9e-05,2]
[328364525,1717252893678,273.37336231,9.9e-05,2]
[328364526,1717252896129,2539.84340473,9.9e-05,2]
[328364527,1717252902191,273.37336231,9.9e-05,2]
[328364528,1717252910387,273.37336231,9.9e-05,2]
[328364529,1717252919002,273.37336231,9.9e-05,2]
[328364530,1717252927897,251.08487386,9.9e-05,2]
[328364531,1717252943851,580.97,0.00010959,2]
[328364532,1717252954470,484.14,0.00010959,2]
[328364533,1717252957067,156.70948464,9.999e-05,2]
[328364534,1717252965015,403.45,0.00010959,2]
[328364535,1717252975551,336.21,0.00010959,2]
[328364536,1717252982750,922.91744678,0.00014,2]
[328364537,1717252983841,157.50929972,9.999e-05,2]
[328364538,1717252984181,1280.27953886,9.999e-05,2]
[328364539,1717252985917,676.80913766,0.00012723,2]
[328364540,1717252986204,280.18,0.00010959,2]
[328364542,1717252993625,155.00620025,0.00010959,2]
[328364543,1717252996817,233.48,0.00010959,2]
[328364544,1717252997039,273.37336231,9.9e-05,2]
[328364545,1717253003030,156.75423754,9.999e-05,2]
[328364546,1717253004941,247.24939525,9.9e-05,2]
[328364547,1717253007073,1315.4253657,9.999e-05,2]
[328364548,1717253007428,194.57,0.00010959,2]
[328364549,1717253009617,184.33704863,0.00010959,2]
[328364550,1717253018026,162.14,0.00010959,2]
[328364551,1717253025120,4624.08874596,0.00010959,2]
[328364552,1717253028561,810.72,0.00010959,2]
[328364553,1717253043000,507.24507368,0.00010959,2]
[328364554,1717253116990,2951.54771108,0.00010959,2]
[328364555,1717253119057,206.96277164,0.00010959,2]
[328364556,1717253187562,267.08301817,9.999e-05,7]
[328364614,1717253432747,-187.60028223,0.00014161,2]
[328364617,1717253432758,-1280.27953886,0.00014162,2]
[328364620,1717253432767,-157.50929972,0.00014162,2]
[328364624,1717253432777,-712.28306487,0.00014163,2]
[328364627,1717253432788,-6655.72504319,0.00014163,2]
[328364630,1717253432800,-35389.88753567,0.00014163,2]